fUST/lending_fUST_20250814
["ID","MTS","AMOUNT","RATE_DAILY","PERIOD"]
[379190554,1755180652666,-460.0,0.00018082,2]
[379190557,1755180652678,-460.0,0.00018082,2]
[379190559,1755180652689,-460.0,0.00018082,2]
[379190561,1755180652699,-460.0,0.00018082,2]
[379190563,1755180652712,-460.0,0.00018082,2]
[379190565,1755180652725,-460.0,0.00018082,2]
[379190567,1755180652738,-503.7,0.00018082,2]
[379190570,1755180652753,-460.0,0.00018082,2]
[379190571,1755180652764,-460.0,0.00018082,2]
[379190573,1755180652775,-638.58,0.00018082,2]
[379190575,1755180652787,-460.0,0.00018082,2]
[379190578,1755180652801,-717.67,0.00018082,2]
[379190580,1755180652813,-460.0,0.00018082,2]
[379190582,1755180652824,-513.55,0.00018082,2]
[379190584,1755180652835,-603.15,0.00018082,2]
[379190587,1755180652847,-460.0,0.00018082,2]
[379190589,1755180652859,-798.93,0.00018082,2]
[379190591,1755180652870,-1015.45,0.00018082,2]
[379190593,1755180652881,-564.31,0.00018082,2]
[379190595,1755180652893,-929.4,0.00018082,2]
[379190598,1755180652906,-460.0,0.00018082,2]
[379190600,1755180652917,-543.74,0.00018082,2]
[379190602,1755180652929,-752.47,0.00018082,2]
[379190604,1755180652947,-805.76,0.00018082,2]
[379190606,1755180652959,-460.0,0.00018082,2]
[379190608,1755180652970,-666.69,0.00018082,2]
[379190610,1755180652983,-912.44,0.00018082,2]
[379190613,1755180652996,-1742.87,0.00018082,2]
[379190615,1755180653008,-460.0,0.00018082,2]
[379190617,1755180653019,-1010.08,0.00018082,2]
[379190619,1755180653031,-609.89,0.00018082,2]
[379190621,1755180653043,-947.27,0.00018082,2]
[379190623,1755180653055,-460.0,0.00018082,2]
[379190625,1755180653066,-641.95,0.00018082,2]
[379190627,1755180653078,-460.0,0.00018082,2]
[379190630,1755180653090,-460.0,0.00018082,2]
[379190632,1755180653101,-833.52,0.00018082,2]
[379190634,1755180653112,-460.0,0.00018082,2]
[379190636,1755180653123,-460.0,0.00018082,2]
[379190639,1755180653139,-571.62,0.00018082,2]
[379190641,1755180653159,-2472.02,0.00018082,2]
[379190644,1755180653172,-460.0,0.00018082,2]
[379190646,1755180653190,-583.29,0.00018082,2]
[379190648,1755180653203,-510.56,0.00018082,2]
[379190650,1755180653216,-460.0,0.00018082,2]
[379190652,1755180653229,-970.14,0.00018082,2]
[379190655,1755180653241,-1484.3,0.00018082,2]
[379190657,1755180653253,-675.55,0.00018082,2]
[379190659,1755180653265,-2567.01,0.00018082,2]
[379190661,1755180653276,-460.0,0.00018082,2]
[379190663,1755180653288,-696.95,0.00018082,2]
[379190666,1755180653300,-576.59,0.00018082,2]
[379190668,1755180653312,-464.79,0.00018082,2]
[379190670,1755180653324,-975.2,0.00018082,2]
[379190672,1755180653335,-460.0,0.00018082,2]
[379190675,1755180653348,-460.0,0.00018082,2]
[379190677,1755180653360,-788.46,0.00018082,2]
[379190679,1755180653373,-460.0,0.00018082,2]
[379190682,1755180653384,-460.0,0.00018082,2]
[379190684,1755180653396,-460.0,0.00018082,2]
[379190686,1755180653407,-460.0,0.00018082,2]
[379190688,1755180653419,-460.0,0.00018082,2]
[379190690,1755180653430,-528.61,0.00018082,2]
[379190693,1755180653445,-460.0,0.00018082,2]
[379190695,1755180653458,-460.0,0.00018082,2]
[379190697,1755180653469,-563.74,0.00018082,2]
[379190699,1755180653481,-7806.81,0.00018082,2]
[379190702,1755180653492,-460.0,0.00018082,2]
[379190704,1755180653504,-862.26,0.00018082,2]
[379190706,1755180653516,-460.0,0.00018082,2]
[379190708,1755180653527,-480.87,0.00018082,2]
[379190710,1755180653538,-460.0,0.00018082,2]
[379190713,1755180653549,-460.0,0.00018082,2]
[379190715,1755180653560,-1740.26,0.00018082,2]
[379190717,1755180653573,-1877.55,0.00018082,2]
[379190720,1755180653586,-460.0,0.00018082,2]
[379190722,1755180653597,-1332.3,0.00018082,2]
[379190724,1755180653609,-4614.94,0.00018082,2]
[379190726,1755180653620,-531.92,0.00018082,2]
[379190728,1755180653632,-582.87,0.00018082,2]
[379190731,1755180653644,-460.0,0.00018082,2]
[379190733,1755180653655,-460.0,0.00018082,2]
[379190735,1755180653666,-1668.91,0.00018082,2]
[379190737,1755180653678,-460.0,0.00018082,2]
[379190739,1755180653690,-2618.86,0.00018082,2]
[379190741,1755180653702,-460.0,0.00018082,2]
[379190744,1755180653715,-888.0,0.00018082,2]
[379190746,1755180653726,-595.48,0.00018082,2]
[379190748,1755180653738,-1212.14,0.00018082,2]
[379190750,1755180653750,-460.0,0.00018082,2]
[379190753,1755180653761,-553.71,0.00018082,2]
[379190755,1755180653772,-460.0,0.00018082,2]
[379190757,1755180653785,-1770.61,0.00018082,2]
[379190759,1755180653796,-460.0,0.00018082,2]
[379190761,1755180653805,-5096.05,0.00018082,2]
[379190763,1755180653815,-528.82,0.00018082,2]
[379190765,1755180653824,-499.23,0.00018082,2]
[379190767,1755180653833,-833.64,0.00018082,2]
[379190769,1755180653842,-460.0,0.00018082,2]
[379190771,1755180653851,-1023.43,0.00018082,2]
[379190773,1755180653861,-460.0,0.00018082,2]
[379190775,1755180653870,-450.543697,0.00018082,2]
[379190777,1755180653879,-450.543697,0.00018082,2]
[379190779,1755180653888,-434.901943,0.00018083,2]
[379190781,1755180653898,-151.0,0.000181,2]
[379190783,1755180653907,-2000.0,0.00018116,2]
[379190785,1755180653916,-635.9661053,0.00018152,2]
[379190787,1755180653925,-311.1,0.00018327,2]
[379190789,1755180653934,-151.0,0.00018356,2]
[379190791,1755180653945,-385.039055,0.00018356,2]
[379190793,1755180653955,-385.039055,0.00018356,2]
[379190795,1755180653965,-460.0,0.00018356,2]
[379190797,1755180653974,-151.0,0.00018356,2]
[379190799,1755180653983,-676.15,0.00018356,2]
[379190802,1755180653993,-460.0,0.00018356,2]
[379190803,1755180654003,-470.06,0.00018356,2]
[379190805,1755180654012,-460.0,0.00018356,2]
[379190807,1755180654021,-460.0,0.00018356,2]
[379190809,1755180654031,-460.0,0.00018356,2]
[379190811,1755180654040,-460.0,0.00018356,2]
[379190813,1755180654049,-460.0,0.00018356,2]
[379190815,1755180654059,-477.74,0.00018356,2]
[379190817,1755180654068,-460.0,0.00018356,2]
[379190819,1755180654078,-460.0,0.00018356,2]
[379190821,1755180654088,-460.0,0.00018356,2]
[379190847,1755180654329,-543.61,0.00018356,2]
[379190850,1755180654364,-460.0,0.00018356,2]
[379190853,1755180654382,-460.0,0.00018356,2]
[379190855,1755180654392,-516.59,0.00018356,2]
[379190857,1755180654402,-779.29,0.00018356,2]
[379190859,1755180654412,-460.0,0.00018356,2]
[379190861,1755180654422,-460.0,0.00018356,2]
[379190863,1755180654432,-460.0,0.00018356,2]
[379190865,1755180654451,-1051.17,0.00018356,2]
[379190867,1755180654460,-191.671207,0.00018356,2]
[379190869,1755180654470,-351.823424,0.00018356,2]
[379190871,1755180654480,-351.823424,0.00018356,2]
[379190873,1755180654489,-460.0,0.00018356,2]
[379190875,1755180654499,-460.0,0.00018356,2]
[379190877,1755180654508,-460.0,0.00018356,2]
[379190879,1755180654518,-460.0,0.00018356,2]
[379190881,1755180654529,-460.0,0.00018356,2]
[379190883,1755180654538,-460.0,0.00018356,2]
[379190885,1755180654548,-460.0,0.00018356,2]
[379190887,1755180654558,-460.0,0.00018356,2]
[379190889,1755180654567,-151.0,0.00018356,2]
[379190891,1755180654576,-503.7,0.00018356,2]
[379190893,1755180654586,-260.78031343,0.00018356,2]
[379190895,1755180654596,-460.0,0.00018356,2]
[379190897,1755180654606,-638.58,0.00018356,2]
[379190899,1755180654615,-460.0,0.00018356,2]
[379190901,1755180654625,-717.67,0.00018356,2]
[379190903,1755180654637,-460.0,0.00018356,2]
[379190905,1755180654647,-513.55,0.00018356,2]
[379190907,1755180654657,-603.15,0.00018356,2]
[379190909,1755180654666,-460.0,0.00018356,2]
[379190911,1755180654675,-798.93,0.00018356,2]
[379190913,1755180654688,-1015.45,0.00018356,2]
[379190914,1755180654697,-564.31,0.00018356,2]
[379190916,1755180654706,-929.4,0.00018356,2]
[379190918,1755180654716,-460.0,0.00018356,2]
[379190920,1755180654725,-543.74,0.00018356,2]
[379190922,1755180654735,-752.47,0.00018356,2]
[379190924,1755180654745,-805.76,0.00018356,2]
[379190926,1755180654754,-460.0,0.00018356,2]
[379190928,1755180654763,-666.69,0.00018356,2]
[379190930,1755180654772,-912.44,0.00018356,2]
[379190932,1755180654782,-1742.87,0.00018356,2]
[379190934,1755180654791,-460.0,0.00018356,2]
[379190936,1755180654805,-1010.08,0.00018356,2]
[379190938,1755180654815,-609.89,0.00018356,2]
[379190940,1755180654824,-947.27,0.00018356,2]
[379190942,1755180654834,-460.0,0.00018356,2]
[379190944,1755180654843,-641.95,0.00018356,2]
[379190946,1755180654852,-460.0,0.00018356,2]
[379190948,1755180654861,-460.0,0.00018356,2]
[379190950,1755180654871,-833.52,0.00018356,2]
[379190952,1755180654880,-460.0,0.00018356,2]
[379190953,1755180654890,-460.0,0.00018356,2]
[379190955,1755180654899,-571.62,0.00018356,2]
[379190957,1755180654908,-2472.02,0.00018356,2]
[379190959,1755180654917,-291.30139975,0.00018356,2]
[379190961,1755180654927,-583.29,0.00018356,2]
[379190963,1755180654940,-510.56,0.00018356,2]
[379190965,1755180654949,-460.0,0.00018356,2]
[379190967,1755180654959,-970.14,0.00018356,2]
[379190969,1755180654968,-1484.3,0.00018356,2]
[379190971,1755180654978,-675.55,0.00018356,2]
[379190973,1755180654989,-2567.01,0.00018356,2]
[379190975,1755180654998,-460.0,0.00018356,2]
[379190977,1755180655007,-696.95,0.00018356,2]
[379190979,1755180655016,-576.59,0.00018356,2]
[379190981,1755180655026,-464.79,0.00018356,2]
[379190983,1755180655035,-975.2,0.00018356,2]
[379190985,1755180655045,-460.0,0.00018356,2]
[379190987,1755180655055,-460.0,0.00018356,2]
[379190989,1755180655064,-788.46,0.00018356,2]
[379190991,1755180655073,-460.0,0.00018356,2]
[379190992,1755180655082,-460.0,0.00018356,2]
[379190994,1755180655092,-460.0,0.00018356,2]
[379190996,1755180655101,-460.0,0.00018356,2]
[379190998,1755180655111,-323.04834413,0.00018356,2]
[379191000,1755180655120,-528.61,0.00018356,2]
[379191002,1755180655130,-460.0,0.00018356,2]
[379191004,1755180655141,-153.69228171,0.00018356,2]
[379191006,1755180655150,-563.74,0.00018356,2]
[379191008,1755180655160,-7806.81,0.00018356,2]
[379191010,1755180655170,-460.0,0.00018356,2]
[379191012,1755180655180,-862.26,0.00018356,2]
[379191014,1755180655190,-460.0,0.00018356,2]
[379191016,1755180655199,-480.87,0.00018356,2]
[379191018,1755180655209,-460.0,0.00018356,2]
[379191020,1755180655219,-460.0,0.00018356,2]
[379191022,1755180655229,-1740.26,0.00018356,2]
[379191024,1755180655238,-1877.55,0.00018356,2]
[379191026,1755180655248,-460.0,0.00018356,2]
[379191028,1755180655258,-4614.94,0.00018356,2]
[379191030,1755180655267,-1332.3,0.00018356,2]
[379191032,1755180655277,-531.92,0.00018356,2]
[379191034,1755180655287,-582.87,0.00018356,2]
[379191036,1755180655296,-460.0,0.00018356,2]
[379191038,1755180655306,-460.0,0.00018356,2]
[379191040,1755180655316,-1668.91,0.00018356,2]
[379191042,1755180655326,-460.0,0.00018356,2]
[379191044,1755180655336,-2618.86,0.00018356,2]
[379191046,1755180655345,-460.0,0.00018356,2]
[379191048,1755180655355,-888.0,0.00018356,2]
[379191050,1755180655365,-595.48,0.00018356,2]
[379191052,1755180655375,-209.3726765,0.00018356,2]
[379191067,1755180655507,-1002.7673235,0.00018356,2]
[379191068,1755180655516,-460.0,0.00018356,2]
[379191070,1755180655526,-553.71,0.00018356,2]
[379191072,1755180655535,-460.0,0.00018356,2]
[379191074,1755180655544,-1770.61,0.00018356,2]
[379191076,1755180655554,-460.0,0.00018356,2]
[379191078,1755180655563,-5096.05,0.00018356,2]
[379191080,1755180655572,-528.82,0.00018356,2]
[379191082,1755180655582,-499.23,0.00018356,2]
[379191084,1755180655591,-833.64,0.00018356,2]
[379191086,1755180655600,-460.0,0.00018356,2]
[379191088,1755180655611,-1023.43,0.00018356,2]
[379191090,1755180655620,-460.0,0.00018356,2]
[379191092,1755180655630,-450.543697,0.00018356,2]
[379191094,1755180655641,-450.543697,0.00018356,2]
[379191096,1755180655651,-151.0,0.000184,2]
[379191098,1755180655660,-180.07923486,0.00018402,2]
[379191100,1755180655670,-157.0,0.000185,2]
[379191102,1755180655680,-157.0,0.000185,2]
[379191104,1755180655689,-260.0,0.00018551,2]
[379191106,1755180655698,-1900.0,0.00018616,2]
[379191107,1755180655708,-2000.0,0.00018616,2]
[379191109,1755180655718,-185.810107,0.0001863,2]
[379191111,1755180655727,-185.810107,0.0001863,2]
[379191113,1755180655736,-216.893172,0.0001863,2]
[379191115,1755180655746,-216.893172,0.0001863,2]
[379191117,1755180655755,-151.0,0.0001863,2]
[379191119,1755180655765,-151.0,0.0001863,2]
[379191121,1755180655773,-385.039055,0.0001863,2]
[379191123,1755180655782,-385.039055,0.0001863,2]
[379191125,1755180655791,-460.0,0.0001863,2]
[379191127,1755180655800,-676.15,0.0001863,2]
[379191129,1755180655808,-460.0,0.0001863,2]
[379191131,1755180655818,-470.06,0.0001863,2]
[379191133,1755180655827,-460.0,0.0001863,2]
[379191135,1755180655836,-460.0,0.0001863,2]
[379191136,1755180655845,-460.0,0.0001863,2]
[379191138,1755180655854,-460.0,0.0001863,2]
[379191140,1755180655863,-523.18922893,0.0001863,2]
[379191142,1755180655872,-477.74,0.0001863,2]
[379191144,1755180655881,-460.0,0.0001863,2]
[379191146,1755180655891,-460.0,0.0001863,2]
[379191148,1755180655900,-338.91886349,0.0001863,2]
[379191150,1755180655909,-543.61,0.0001863,2]
[379191152,1755180655918,-460.0,0.0001863,2]
[379191154,1755180655927,-460.0,0.0001863,2]
[379191156,1755180655936,-516.59,0.0001863,2]
[379191158,1755180655946,-779.29,0.0001863,2]
[379191160,1755180655956,-460.0,0.0001863,2]
[379191162,1755180655966,-460.0,0.0001863,2]
[379191164,1755180655975,-134.44438722,0.0001863,2]
[379191166,1755180655987,-325.55561278,0.0001863,2]
[379191168,1755180655996,-1051.17,0.0001863,2]
[379191170,1755180656006,-351.823424,0.0001863,2]
[379191172,1755180656015,-351.823424,0.0001863,2]
[379191173,1755180656024,-460.0,0.0001863,2]
[379191174,1755180656032,-460.0,0.0001863,2]
[379191175,1755180656042,-460.0,0.0001863,2]
[379191176,1755180656051,-460.0,0.0001863,2]
[379191177,1755180656060,-460.0,0.0001863,2]
[379191178,1755180656069,-319.80804356,0.0001863,2]
[379191179,1755180656078,-460.0,0.0001863,2]
[379191180,1755180656087,-460.0,0.0001863,2]
[379191181,1755180656096,-503.7,0.0001863,2]
[379191182,1755180656105,-460.0,0.0001863,2]
[379191183,1755180656114,-638.58,0.0001863,2]
[379191184,1755180656123,-460.0,0.0001863,2]
[379191185,1755180656132,-717.67,0.0001863,2]
[379191186,1755180656141,-460.0,0.0001863,2]
[379191187,1755180656151,-513.55,0.0001863,2]
[379191188,1755180656160,-603.15,0.0001863,2]
[379191189,1755180656169,-460.0,0.0001863,2]
[379191190,1755180656179,-798.93,0.0001863,2]
[379191191,1755180656189,-1015.45,0.0001863,2]
[379191192,1755180656199,-564.31,0.0001863,2]
[379191193,1755180656209,-929.4,0.0001863,2]
[379191194,1755180656218,-460.0,0.0001863,2]
[379191195,1755180656228,-543.74,0.0001863,2]
[379191196,1755180656237,-752.47,0.0001863,2]
[379191197,1755180656247,-151.0,0.0001863,2]
[379191198,1755180656256,-151.0,0.0001863,2]
[379191199,1755180656268,-805.76,0.0001863,2]
[379191200,1755180656277,-500.0,0.0001863,2]
[379191201,1755180656287,-500.0,0.0001863,2]
[379191202,1755180656296,-151.0,0.0001863,2]
[379191203,1755180656305,-500.0,0.0001863,2]
[379191204,1755180656314,-460.0,0.0001863,2]
[379191205,1755180656324,-666.69,0.0001863,2]
[379191207,1755180656334,-500.0,0.0001863,2]
[379191208,1755180656343,-151.0,0.0001863,2]
[379191210,1755180656352,-912.44,0.0001863,2]
[379191212,1755180656362,-1742.87,0.0001863,2]
[379191214,1755180656371,-131.83668566,0.0001863,2]
[379191216,1755180656383,-328.16331434,0.0001863,2]
[379191218,1755180656392,-201.68237493,0.0001863,2]
[379191384,1755180658841,-808.39762507,0.0001863,2]
[379191385,1755180658851,-609.89,0.0001863,2]
[379191386,1755180658860,-831.19263707,0.0001863,2]
[379191768,1755180670753,-337.26366115,0.00015801,2]
[379191769,1755180683045,-337.26366115,0.00015801,2]
[379191771,1755180709804,3426.12307513,0.00015433,2]
[379191772,1755180709829,1286.81499287,0.00015433,2]
[379191773,1755180712981,879.61441,0.00013699,2]
[379191774,1755180734699,156.94339,0.00023,30]
[379191775,1755180762756,243.545088,0.00023,30]
[379191776,1755180763122,243.545088,0.00023,30]
[379191777,1755180763558,243.545088,0.00023,30]
[379191778,1755180765279,243.545088,0.00023,30]
[379191779,1755180765642,243.545088,0.00023,30]
[379191780,1755180813845,5000.0,0.00023,30]
[379191781,1755180883753,2274.75936054,0.000222,69]
[379191782,1755180888761,2274.75936053,0.000222,69]
[379191783,1755180893736,2274.75936053,0.000222,69]
[379191784,1755180957183,178.926491,0.00015483,2]
[379191785,1755180957495,178.926491,0.00015483,41]
[379191786,1755180957922,178.926491,0.00015483,80]
[379191787,1755180958127,178.926491,0.00015483,119]
[379191789,1755181028836,2654.64410613,0.00015354,2]
[379191790,1755181028861,5000.0,0.00015354,2]
[379191791,1755181028885,1904.66211837,0.00015354,2]
[379191792,1755181152025,10000.0,0.00023,30]
[379191793,1755181167714,667.97,0.00026,120]
[379191794,1755181349021,909.90374422,0.000222,69]
[379191795,1755181354055,909.90374421,0.000222,69]
[379191796,1755181355866,169.433355,0.00015296,2]
[379191797,1755181358998,909.90374421,0.000222,69]
[379191798,1755181364818,162.363392,0.00023,30]
[379191799,1755181365135,162.363392,0.00023,30]
[379191800,1755181365442,162.363392,0.00023,30]
[379191801,1755181365750,162.363392,0.00023,30]
[379191802,1755181366097,162.363392,0.00023,30]
[379191803,1755181397322,200.0,0.00023,30]
[379191804,1755181399366,200.0,0.00023,30]
[379191805,1755181449883,200.0,0.0002205,30]
[379191809,1755181607164,404.78905779,0.00021918,120]
[379191811,1755181640013,168.6,0.00026,120]
[379191846,1755181720354,280.87321079,0.0002045,30]
[379191861,1755181814314,363.9614977,0.000222,69]
[379191862,1755181819306,363.96149768,0.000222,69]
[379191864,1755181824354,363.96149768,0.0002222,69]
[379191875,1755181832569,-211.42003281,0.00016,2]
[379191876,1755181832579,-1421.33949856,0.000161,2]
[379191877,1755181832589,-637.13766015,0.00016146,2]
[379191878,1755181832598,-637.13766011,0.00016173,2]
[379191879,1755181832607,-1460.56373302,0.000162,2]
[379191880,1755181832622,-2834.20017645,0.000162,2]
[379191882,1755181832631,-637.13766011,0.00016201,2]
[379191884,1755181832640,-1200.0,0.00016227,2]
[379191886,1755181832650,-637.13766011,0.00016228,2]
[379191888,1755181832659,-300.0,0.00016254,2]
[379191890,1755181832668,-601.98720823,0.00016255,2]
[379191946,1755181838564,-1737.17780733,0.00016255,2]
[379191948,1755181838573,-213.22219272,0.00016255,2]
[379192076,1755181840115,-10000.0,0.00016326,2]
[379192079,1755181840129,-202.02482474,0.00016338,2]
[379192081,1755181840138,-48984.83845208,0.00016355,2]
[379192082,1755181840148,-330.91889401,0.00016355,2]
[379192085,1755181840158,-2183.31810187,0.00016418,2]
[379192087,1755181840168,-258.63,0.00016428,3]
[379192088,1755181840178,-775.94,0.00016428,3]
[379192090,1755181840188,-151.0,0.00016428,2]
[379192093,1755181840197,-151.0,0.00016428,2]
[379192095,1755181840207,-151.0,0.00016428,2]
[379192097,1755181840217,-255.0,0.00016431,2]
[379192098,1755181840226,-603.03108244,0.00016436,2]
[379192100,1755181840236,-500.0,0.00016436,2]
[379192103,1755181840246,-268.01411509,0.00016436,2]
[379192104,1755181840256,-500.0,0.00016436,2]
[379192106,1755181840265,-500.0,0.00016436,2]
[379192108,1755181840275,-500.0,0.00016436,2]
[379192110,1755181840284,-325.37681238,0.00016436,2]
[379192112,1755181840294,-258.37520137,0.00016436,2]
[379192114,1755181840304,-16200.10869058,0.00016437,2]
[379192116,1755181840314,-460.0,0.00016438,2]
[379192118,1755181840323,-460.0,0.00016438,2]
[379192120,1755181840333,-460.0,0.00016438,2]
[379192123,1755181840342,-460.0,0.00016438,2]
[379192124,1755181840352,-460.0,0.00016438,2]
[379192127,1755181840361,-460.0,0.00016438,2]
[379192129,1755181840372,-460.0,0.00016438,2]
[379192131,1755181840381,-460.0,0.00016438,2]
[379192133,1755181840390,-460.0,0.00016438,2]
[379192135,1755181840400,-460.0,0.00016438,2]
[379192137,1755181840410,-460.0,0.00016438,2]
[379192139,1755181840420,-460.0,0.00016438,2]
[379192141,1755181840429,-460.0,0.00016438,2]
[379192143,1755181840439,-460.0,0.00016438,2]
[379192145,1755181840448,-460.0,0.00016438,2]
[379192147,1755181840457,-460.0,0.00016438,2]
[379192148,1755181840466,-487.06,0.00016438,2]
[379192150,1755181840476,-460.0,0.00016438,2]
[379192153,1755181840486,-460.0,0.00016438,2]
[379192155,1755181840496,-460.0,0.00016438,2]
[379192157,1755181840506,-460.0,0.00016438,2]
[379192158,1755181840515,-460.0,0.00016438,2]
[379192161,1755181840525,-460.0,0.00016438,2]
[379192162,1755181840534,-656.99,0.00016438,2]
[379192164,1755181840544,-460.0,0.00016438,2]
[379192166,1755181840554,-460.0,0.00016438,2]
[379192168,1755181840563,-460.0,0.00016438,2]
[379192170,1755181840573,-460.0,0.00016438,2]
[379192172,1755181840582,-460.0,0.00016438,2]
[379192174,1755181840592,-460.0,0.00016438,2]
[379192176,1755181840602,-460.0,0.00016438,2]
[379192178,1755181840611,-460.0,0.00016438,2]
[379192180,1755181840625,-460.0,0.00016438,2]
[379192182,1755181840635,-460.0,0.00016438,2]
[379192184,1755181840644,-460.0,0.00016438,2]
[379192186,1755181840654,-499.33,0.00016438,2]
[379192188,1755181840664,-460.0,0.00016438,2]
[379192190,1755181840673,-460.0,0.00016438,2]
[379192192,1755181840684,-460.0,0.00016438,2]
[379192194,1755181840693,-460.0,0.00016438,2]
[379192196,1755181840703,-460.0,0.00016438,2]
[379192198,1755181840713,-837.76,0.00016438,2]
[379192200,1755181840722,-460.0,0.00016438,2]
[379192202,1755181840731,-460.0,0.00016438,2]
[379192204,1755181840741,-580.88,0.00016438,2]
[379192206,1755181840751,-470.29,0.00016438,2]
[379192208,1755181840760,-460.0,0.00016438,2]
[379192210,1755181840770,-460.0,0.00016438,2]
[379192212,1755181840780,-460.0,0.00016438,2]
[379192214,1755181840790,-460.0,0.00016438,2]
[379192216,1755181840799,-1745.9,0.00016438,2]
[379192218,1755181840809,-460.0,0.00016438,2]
[379192220,1755181840818,-460.0,0.00016438,2]
[379192222,1755181840828,-460.0,0.00016438,2]
[379192224,1755181840837,-570.28,0.00016438,2]
[379192226,1755181840846,-460.0,0.00016438,2]
[379192228,1755181840856,-460.0,0.00016438,2]
[379192230,1755181840866,-460.0,0.00016438,2]
[379192232,1755181840878,-646.76,0.00016438,2]
[379192234,1755181840888,-460.0,0.00016438,2]
[379192236,1755181840897,-460.0,0.00016438,2]
[379192238,1755181840907,-1648.01,0.00016438,2]
[379192240,1755181840916,-460.0,0.00016438,2]
[379192242,1755181840925,-460.0,0.00016438,2]
[379192244,1755181840935,-460.0,0.00016438,2]
[379192246,1755181840944,-460.0,0.00016438,2]
[379192248,1755181840954,-460.0,0.00016438,2]
[379192250,1755181840963,-460.0,0.00016438,2]
[379192252,1755181840972,-460.0,0.00016438,2]
[379192254,1755181840981,-808.09,0.00016438,2]
[379192256,1755181840991,-460.0,0.00016438,2]
[379192258,1755181841005,-460.0,0.00016438,2]
[379192260,1755181841014,-460.0,0.00016438,2]
[379192262,1755181841024,-574.84,0.00016438,2]
[379192264,1755181841033,-460.0,0.00016438,2]
[379192266,1755181841043,-460.0,0.00016438,2]
[379192268,1755181841052,-989.53,0.00016438,2]
[379192270,1755181841062,-460.0,0.00016438,2]
[379192272,1755181841073,-3076.63,0.00016438,2]
[379192274,1755181841082,-460.0,0.00016438,2]
[379192276,1755181841092,-460.0,0.00016438,2]
[379192278,1755181841102,-5204.54,0.00016438,2]
[379192280,1755181841111,-460.0,0.00016438,2]
[379192282,1755181841122,-650.13,0.00016438,2]
[379192284,1755181841132,-1551.8,0.00016438,2]
[379192286,1755181841143,-1251.7,0.00016438,2]
[379192288,1755181841153,-460.0,0.00016438,2]
[379192290,1755181841163,-460.0,0.00016438,2]
[379192292,1755181841172,-460.0,0.00016438,2]
[379192294,1755181841182,-592.0,0.00016438,2]
[379192296,1755181841192,-460.0,0.00016438,2]
[379192298,1755181841201,-1160.17,0.00016438,2]
[379192300,1755181841210,-888.2,0.00016438,2]
[379192302,1755181841219,-460.0,0.00016438,2]
[379192304,1755181841229,-460.0,0.00016438,2]
[379192306,1755181841239,-460.0,0.00016438,2]
[379192308,1755181841248,-460.0,0.00016438,2]
[379192310,1755181841257,-460.0,0.00016438,2]